fUSD/lending_fUSD_20251225
["ID","MTS","AMOUNT","RATE_DAILY","PERIOD"]
[399733006,1766641846606,-297.40574568,0.00016266,2]
[399733007,1766641846616,-150.0,0.00016266,2]
[399733008,1766641846625,-150.0,0.00016268,2]
[399733009,1766641846635,-150.0,0.00016268,2]
[399733010,1766641846645,-150.0,0.00016269,2]
[399733011,1766641846656,-150.0,0.00016271,2]
[399733012,1766641846668,-150.0,0.00016279,2]
[399733013,1766641846677,-207.98052348,0.00016283,2]
[399733014,1766641846686,-172.12623375,0.00016283,2]
[399733015,1766641846696,-297.40574568,0.00016283,2]
[399733016,1766641846706,-150.0,0.00016285,2]
[399733017,1766641846715,-150.0,0.00016286,2]
[399733018,1766641846726,-150.0,0.00016292,2]
[399733019,1766641846736,-207.98052348,0.000163,2]
[399733020,1766641846746,-172.12623375,0.000163,2]
[399733021,1766641846756,-297.40574568,0.000163,2]
[399733022,1766641846766,-21622.54292245,0.00016301,2]
[399733023,1766641846776,-62080.79342118,0.00016301,2]
[399733024,1766641846786,-150.0,0.00016303,2]
[399733025,1766641846796,-150.0,0.00016303,2]
[399733026,1766641846806,-150.0,0.00016307,2]
[399733027,1766641846816,-500.0,0.00016312,2]
[399733028,1766641846826,-500.0,0.00016312,2]
[399733029,1766641846835,-521.79,0.00016312,2]
[399733030,1766641846845,-500.0,0.00016312,2]
[399733031,1766641846855,-564.85,0.00016312,2]
[399733032,1766641846864,-500.0,0.00016312,2]
[399733033,1766641846874,-500.0,0.00016312,2]
[399733034,1766641846884,-500.0,0.00016312,2]
[399733035,1766641846893,-150.0,0.00016316,2]
[399733036,1766641846903,-207.98052348,0.00016317,2]
[399733037,1766641846912,-172.12623375,0.00016317,2]
[399733038,1766641846921,-297.40574568,0.00016317,2]
[399733039,1766641846931,-150.0,0.00016321,2]
[399733040,1766641846946,-150.0,0.00016322,2]
[399733041,1766641846956,-150.0,0.00016333,2]
[399733042,1766641846966,-207.98052348,0.00016334,2]
[399733043,1766641846976,-172.12623375,0.00016334,2]
[399733044,1766641846986,-297.40574568,0.00016334,2]
[399733045,1766641846995,-150.0,0.00016338,2]
[399733046,1766641847005,-150.0,0.0001634,2]
[399733047,1766641847015,-150.0,0.0001634,2]
[399733048,1766641847026,-150.0,0.00016349,2]
[399733049,1766641847036,-150.0,0.00016349,2]
[399733050,1766641847046,-162.74,0.0001635,2]
[399733051,1766641847056,-207.98052348,0.00016351,2]
[399733052,1766641847067,-172.12623375,0.00016351,2]
[399733053,1766641847076,-297.40574568,0.00016351,2]
[399733054,1766641847086,-150.0,0.00016356,2]
[399733055,1766641847096,-150.0,0.00016359,2]
[399733056,1766641847106,-150.0,0.0001636,2]
[399733057,1766641847116,-150.0,0.00016364,2]
[399733058,1766641847126,-207.98052348,0.00016369,2]
[399733059,1766641847136,-172.12623375,0.00016369,2]
[399733060,1766641847146,-297.40574568,0.00016369,2]
[399733061,1766641847156,-155.0,0.00016372,2]
[399733062,1766641847166,-150.0,0.00016373,2]
[399733063,1766641847175,-150.0,0.00016377,2]
[399733064,1766641847184,-207.98052348,0.00016386,2]
[399733065,1766641847194,-172.12623375,0.00016386,2]
[399733066,1766641847205,-297.40574568,0.00016386,2]
[399733067,1766641847214,-150.0,0.00016388,2]
[399733068,1766641847224,-150.0,0.00016391,2]
[399733069,1766641847234,-150.0,0.00016392,2]
[399733070,1766641847244,-150.0,0.00016395,2]
[399733071,1766641847254,-150.0,0.00016398,2]
[399733072,1766641847264,-228.0,0.000164,2]
[399733073,1766641847275,-319.0,0.000164,2]
[399733074,1766641847285,-182.0,0.000164,2]
[399733075,1766641847295,-184.24951816,0.000164,2]
[399733076,1766641847306,-207.98052348,0.00016403,2]
[399733077,1766641847322,-172.12623375,0.00016403,2]
[399733078,1766641847332,-297.40574568,0.00016403,2]
[399733079,1766641847342,-150.0,0.00016408,2]
[399733080,1766641847352,-150.0,0.00016412,2]
[399733081,1766641847362,-150.0,0.00016414,2]
[399733082,1766641847371,-207.98052348,0.0001642,2]
[399733083,1766641847381,-172.12623375,0.0001642,2]
[399733084,1766641847394,-150.0,0.0001642,2]
[399733085,1766641847404,-297.40574568,0.0001642,2]
[399733086,1766641847415,-150.0,0.0001642,2]
[399733087,1766641847425,-150.0,0.0001642,2]
[399733088,1766641847435,-150.0,0.00016426,2]
[399733089,1766641847445,-150.0,0.00016432,2]
[399733090,1766641847456,-150.0,0.00016434,2]
[399733091,1766641847469,-150.0,0.00016436,2]
[399733092,1766641847478,-207.98052348,0.00016437,2]
[399733093,1766641847488,-172.12623375,0.00016437,2]
[399733094,1766641847497,-297.40574568,0.00016437,2]
[399733095,1766641847507,-500.0,0.00016438,2]
[399733096,1766641847517,-500.0,0.00016438,2]
[399733097,1766641847526,-500.0,0.00016438,2]
[399733098,1766641847535,-500.0,0.00016438,2]
[399733099,1766641847546,-500.0,0.00016438,2]
[399733100,1766641847556,-500.0,0.00016438,2]
[399733101,1766641847565,-550.0,0.00016438,2]
[399733102,1766641847575,-500.0,0.00016438,2]
[399733103,1766641847586,-500.0,0.00016438,2]
[399733104,1766641847595,-500.0,0.00016438,2]
[399733105,1766641847605,-500.0,0.00016438,2]
[399733106,1766641847615,-500.0,0.00016438,2]
[399733107,1766641847798,-500.0,0.00016438,2]
[399733108,1766641847824,-500.0,0.00016438,2]
[399733109,1766641847835,-500.0,0.00016438,2]
[399733110,1766641847845,-500.0,0.00016438,2]
[399733111,1766641847856,-500.0,0.00016438,2]
[399733112,1766641847867,-500.0,0.00016438,2]
[399733113,1766641847877,-500.0,0.00016438,2]
[399733114,1766641847887,-500.0,0.00016438,2]
[399733115,1766641847900,-500.0,0.00016438,2]
[399733116,1766641847910,-500.0,0.00016438,2]
[399733117,1766641847921,-500.0,0.00016438,2]
[399733118,1766641847930,-500.0,0.00016438,2]
[399733119,1766641847941,-500.0,0.00016438,2]
[399733120,1766641847951,-500.0,0.00016438,2]
[399733121,1766641847961,-500.0,0.00016438,2]
[399733122,1766641847971,-500.0,0.00016438,2]
[399733123,1766641847982,-500.0,0.00016438,2]
[399733124,1766641847992,-500.0,0.00016438,2]
[399733125,1766641848002,-500.0,0.00016438,2]
[399733126,1766641848016,-500.0,0.00016438,2]
[399733127,1766641848027,-500.0,0.00016438,2]
[399733128,1766641848037,-500.0,0.00016438,2]
[399733129,1766641848048,-500.0,0.00016438,2]
[399733130,1766641848059,-500.0,0.00016438,2]
[399733131,1766641848069,-500.0,0.00016438,2]
[399733132,1766641848081,-500.0,0.00016438,2]
[399733133,1766641848091,-500.0,0.00016438,2]
[399733134,1766641848101,-493.57567105,0.00016438,2]
[399733135,1766641848111,-500.0,0.00016438,2]
[399733136,1766641848121,-500.0,0.00016438,2]
[399733137,1766641848131,-500.0,0.00016438,2]
[399733138,1766641848142,-500.0,0.00016438,2]
[399733139,1766641848152,-500.0,0.00016438,2]
[399733140,1766641848161,-500.0,0.00016438,2]
[399733141,1766641848172,-11555.64,0.00016438,2]
[399733142,1766641848182,-600.0,0.00016438,2]
[399733143,1766641848192,-800.0,0.00016438,2]
[399733144,1766641848208,-900.0,0.00016438,2]
[399733145,1766641848218,-716.0,0.00016438,2]
[399733146,1766641848228,-1892.16,0.00016441,2]
[399733147,1766641848239,-150.0,0.00016443,2]
[399733148,1766641848250,-150.0,0.0001645,2]
[399733149,1766641848260,-150.0,0.00016451,2]
[399733150,1766641848270,-207.98052348,0.00016454,2]
[399733151,1766641848280,-172.12623375,0.00016454,2]
[399733152,1766641848289,-297.40574568,0.00016454,2]
[399733153,1766641848299,-150.0,0.0001646,2]
[399733154,1766641848309,-166.66,0.0001646,2]
[399733155,1766641848319,-150.0,0.00016461,2]
[399733156,1766641848329,-150.0,0.00016464,2]
[399733157,1766641848339,-150.0,0.00016469,2]
[399733158,1766641848348,-207.98052348,0.00016472,2]
[399733159,1766641848358,-172.12623375,0.00016472,2]
[399733160,1766641848368,-297.40574568,0.00016472,2]
[399733161,1766641848378,-150.0,0.00016477,2]
[399733162,1766641848388,-150.0,0.00016478,2]
[399733163,1766641848410,-150.0,0.00016484,2]
[399733164,1766641848431,-223.45632631,0.00016484,2]
[399733165,1766641848444,-150.0,0.00016488,2]
[399733166,1766641848455,-207.98052348,0.00016489,2]
[399733167,1766641848467,-172.12623375,0.00016489,2]
[399733168,1766641848478,-297.40574568,0.00016489,2]
[399733169,1766641848489,-150.0,0.00016491,2]
[399733170,1766641848501,-150.0,0.00016496,2]
[399733171,1766641848512,-207.98052348,0.00016506,2]
[399733172,1766641848523,-172.12623375,0.00016506,2]
[399733173,1766641848535,-297.40574568,0.00016506,2]
[399733174,1766641848545,-150.0,0.00016506,2]
[399733175,1766641848556,-150.0,0.00016508,2]
[399733176,1766641848568,-150.0,0.00016513,2]
[399733177,1766641848579,-150.0,0.00016519,2]
[399733178,1766641848590,-207.98052348,0.00016523,2]
[399733179,1766641848600,-172.12623375,0.00016523,2]
[399733180,1766641848611,-297.40574568,0.00016523,2]
[399733181,1766641848622,-150.0,0.00016525,2]
[399733182,1766641848633,-150.0,0.00016529,2]
[399733183,1766641848644,-150.0,0.00016531,2]
[399733184,1766641848655,-1000.0,0.00016531,2]
[399733185,1766641848666,-150.0,0.00016532,2]
[399733186,1766641848678,-150.0,0.00016539,2]
[399733187,1766641848689,-207.98052348,0.0001654,2]
[399733188,1766641848701,-172.12623375,0.0001654,2]
[399733189,1766641848712,-297.40574568,0.0001654,2]
[399733190,1766641848722,-150.0,0.00016543,2]
[399733191,1766641848734,-150.0,0.00016549,2]
[399733192,1766641848745,-150.0,0.00016556,2]
[399733193,1766641848755,-207.98052348,0.00016557,2]
[399733194,1766641848772,-172.12623375,0.00016557,2]
[399733195,1766641848783,-297.40574568,0.00016557,2]
[399733196,1766641848794,-150.0,0.00016562,2]
[399733197,1766641848805,-150.0,0.00016562,2]
[399733198,1766641848817,-150.0,0.00016562,2]
[399733199,1766641848828,-150.0,0.00016562,2]
[399733200,1766641848838,-801.25612123,0.00016565,2]
[399733201,1766641848850,-150.0,0.00016566,2]
[399733202,1766641848861,-207.98052348,0.00016575,2]
[399733203,1766641848872,-172.12623375,0.00016575,2]
[399733204,1766641848882,-297.40574568,0.00016575,2]
[399733205,1766641848893,-150.0,0.0001658,2]
[399733206,1766641848904,-782.38,0.0001658,2]
[399733207,1766641848915,-500.0,0.0001658,2]
[399733208,1766641848926,-468.04981383,0.0001658,2]
[399733209,1766641848936,-500.0,0.0001658,2]
[399733210,1766641848947,-521.79,0.0001658,2]
[399733211,1766641848959,-500.0,0.0001658,2]
[399733212,1766641848969,-564.85,0.0001658,2]
[399733213,1766641848980,-238.33319847,0.0001658,2]
[399733214,1766641848991,-765.26,0.0001658,2]
[399733215,1766641849002,-500.0,0.0001658,2]
[399733216,1766641849012,-500.0,0.0001658,2]
[399733217,1766641849024,-150.0,0.0001658,2]
[399733218,1766641849035,-18052.4854721,0.00016581,2]
[399733219,1766641849046,-232662.3425453,0.00016581,2]
[399733220,1766641849058,-150.0,0.00016584,2]
[399733221,1766641849068,-207.98052348,0.00016592,2]
[399733222,1766641849079,-172.12623375,0.00016592,2]
[399733223,1766641849090,-297.40574568,0.00016592,2]
[399733224,1766641849101,-150.0,0.00016594,2]
[399733225,1766641849112,-150.0,0.00016599,2]
[399733226,1766641849123,-150.0,0.00016601,2]
[399733227,1766641849134,-150.0,0.00016604,2]
[399733228,1766641849145,-150.0,0.00016604,2]
[399733229,1766641849155,-207.98052348,0.00016609,2]
[399733230,1766641849166,-172.12623375,0.00016609,2]
[399733231,1766641849176,-297.40574568,0.00016609,2]
[399733232,1766641849186,-150.0,0.00016609,2]
[399733233,1766641849197,-150.0,0.00016617,2]
[399733234,1766641849208,-150.0,0.00016619,2]
[399733235,1766641849219,-207.98052348,0.00016626,2]
[399733236,1766641849229,-172.12623375,0.00016626,2]
[399733237,1766641849241,-297.40574568,0.00016626,2]
[399733238,1766641849252,-150.0,0.00016627,2]
[399733239,1766641849263,-150.0,0.00016629,2]
[399733240,1766641849274,-150.0,0.00016632,2]
[399733241,1766641849285,-150.0,0.00016635,2]
[399733242,1766641849296,-150.0,0.00016636,2]
[399733243,1766641849306,-200.0,0.00016639,2]
[399733244,1766641849316,-249.0,0.00016639,2]
[399733245,1766641849327,-500.0,0.00016639,2]
[399733246,1766641849337,-207.98052348,0.00016643,2]
[399733247,1766641849347,-172.12623375,0.00016643,2]
[399733248,1766641849358,-297.40574568,0.00016643,2]
[399733249,1766641849369,-150.0,0.00016647,2]
[399733250,1766641849380,-150.0,0.00016651,2]
[399733251,1766641849392,-150.0,0.00016654,2]
[399733252,1766641849404,-150.0,0.00016654,2]
[399733253,1766641849414,-150.0,0.0001666,2]
[399733254,1766641849424,-207.98052348,0.0001666,2]
[399733255,1766641849436,-172.12623375,0.0001666,2]
[399733256,1766641849446,-297.40574568,0.0001666,2]
[399733257,1766641849456,-150.0,0.00016671,2]
[399733258,1766641849469,-150.0,0.00016672,2]
[399733259,1766641849479,-150.0,0.00016675,2]
[399733260,1766641849490,-207.98052348,0.00016677,2]
[399733261,1766641849500,-172.12623375,0.00016677,2]
[399733262,1766641849512,-297.40574568,0.00016677,2]
[399733263,1766641849523,-150.0,0.00016689,2]
[399733264,1766641849534,-150.0,0.00016689,2]
[399733265,1766641849544,-150.0,0.00016691,2]
[399733266,1766641849555,-207.98052348,0.00016695,2]
[399733267,1766641849565,-172.12623375,0.00016695,2]
[399733268,1766641849575,-297.40574568,0.00016695,2]
[399733269,1766641849587,-150.0,0.00016699,2]
[399733270,1766641849597,-150.0,0.00016703,2]
[399733271,1766641849607,-150.0,0.00016703,2]
[399733272,1766641849618,-150.0,0.00016706,2]
[399733273,1766641849629,-150.0,0.00016709,2]
[399733274,1766641849639,-207.98052348,0.00016712,2]
[399733275,1766641849650,-172.12623375,0.00016712,2]
[399733276,1766641849660,-297.40574568,0.00016712,2]
[399733277,1766641849670,-166.63,0.00016712,2]
[399733278,1766641849680,-1892.23,0.00016715,2]
[399733279,1766641849691,-150.0,0.00016718,2]
[399733280,1766641849702,-150.0,0.00016723,2]
[399733281,1766641849712,-150.0,0.00016724,2]
[399733282,1766641849723,-150.0,0.00016725,2]
[399733283,1766641849734,-150.0,0.00016728,2]
[399733284,1766641849744,-207.98052348,0.00016729,2]
[399733285,1766641849755,-172.12623375,0.00016729,2]
[399733286,1766641849766,-297.40574568,0.00016729,2]
[399733287,1766641849776,-150.0,0.00016732,2]
[399733288,1766641849787,-235.22228614,0.00016732,2]
[399733289,1766641849797,-856.57179158,0.00016739,2]
[399733290,1766641849808,-150.0,0.00016741,2]
[399733291,1766641849819,-207.98052348,0.00016746,2]
[399733292,1766641849830,-172.12623375,0.00016746,2]
[399733293,1766641849841,-297.40574568,0.00016746,2]
[399733294,1766641849852,-150.0,0.00016746,2]
[399733295,1766641849863,-150.0,0.00016747,2]
[399733296,1766641849874,-150.0,0.00016759,2]
[399733297,1766641849885,-207.98052348,0.00016763,2]
[399733298,1766641849895,-172.12623375,0.00016763,2]
[399733299,1766641849906,-297.40574568,0.00016763,2]
[399733300,1766641849916,-150.0,0.00016765,2]
[399733301,1766641849927,-150.0,0.00016771,2]
[399733302,1766641849937,-150.0,0.00016774,2]
[399733303,1766641849948,-150.0,0.00016774,2]
[399733304,1766641849959,-150.0,0.00016776,2]
[399733305,1766641849969,-207.98052348,0.0001678,2]
[399733306,1766641849979,-172.12623375,0.0001678,2]
[399733307,1766641849990,-297.40574568,0.0001678,2]
[399733308,1766641850001,-150.0,0.00016783,2]
[399733309,1766641850011,-150.0,0.0001679,2]
[399733310,1766641850021,-150.0,0.00016794,2]
[399733311,1766641850031,-150.0,0.00016795,2]
[399733312,1766641850042,-207.98052348,0.00016798,2]
[399733313,1766641850053,-172.12623375,0.00016798,2]
[399733314,1766641850064,-297.40574568,0.00016798,2]
[399733315,1766641850074,-150.0,0.00016798,2]
[399733316,1766641850085,-201.12732165,0.000168,2]
[399733317,1766641850096,-150.0,0.00016802,2]
[399733318,1766641850106,-150.0,0.00016807,2]
[399733319,1766641850116,-150.0,0.00016811,2]
[399733320,1766641850126,-207.98052348,0.00016815,2]
[399733321,1766641850136,-172.12623375,0.00016815,2]
[399733322,1766641850147,-297.40574568,0.00016815,2]
[399733323,1766641850158,-150.0,0.00016816,2]
[399733324,1766641850168,-150.0,0.00016819,2]
[399733325,1766641850178,-150.0,0.0001682,2]
[399733326,1766641850189,-150.0,0.00016829,2]
[399733327,1766641850199,-207.98052348,0.00016832,2]
[399733328,1766641850548,-172.12623375,0.00016832,2]
[399733329,1766641850564,-297.40574568,0.00016832,2]
[399733330,1766641850575,-150.0,0.00016839,2]
[399733331,1766641850585,-150.0,0.00016843,2]
[399733332,1766641850595,-150.0,0.00016845,2]
[399733333,1766641850605,-150.0,0.00016846,2]
[399733334,1766641850616,-207.98052348,0.00016849,2]
[399733335,1766641850626,-172.12623375,0.00016849,2]
[399733336,1766641850636,-297.40574568,0.00016849,2]
[399733337,1766641850647,-150.0,0.00016856,2]
[399733338,1766641850658,-150.0,0.00016857,2]
[399733339,1766641850667,-150.0,0.00016859,2]
[399733340,1766641850677,-150.0,0.00016864,2]
[399733341,1766641850687,-207.98052348,0.00016866,2]
[399733342,1766641850697,-172.12623375,0.00016866,2]
[399733343,1766641850707,-297.40574568,0.00016866,2]
[399733344,1766641850718,-150.0,0.00016867,2]
[399733345,1766641850728,-150.0,0.00016876,2]
[399733346,1766641850738,-150.0,0.00016881,2]
[399733347,1766641850748,-207.98052348,0.00016883,2]
[399733348,1766641850759,-172.12623375,0.00016883,2]
[399733349,1766641850769,-297.40574568,0.00016883,2]
[399733350,1766641850780,-231.40654288,0.0001689,2]
[399733351,1766641850791,-150.0,0.00016891,2]
[399733352,1766641850802,-150.0,0.00016894,2]
[399733353,1766641850811,-150.0,0.00016897,2]
[399733354,1766641850821,-247.0,0.00016897,2]
[399733355,1766641850831,-150.0,0.00016899,2]
[399733356,1766641850841,-782.38,0.00016899,2]
[399733357,1766641850851,-500.0,0.00016899,2]
[399733358,1766641850861,-765.26,0.00016899,2]
[399733359,1766641850870,-2857.5192,0.000169,2]
[399733360,1766641850880,-10000.0,0.000169,2]
[399733361,1766641850890,-21622.54292245,0.000169,2]
[399733362,1766641850900,-309.94466242,0.000169,2]
[399733363,1766641850910,-170.28248417,0.000169,2]
[399733364,1766641850921,-1391.84115042,0.000169,2]
[399733365,1766641850931,-62080.79342118,0.000169,2]
[399733366,1766641850941,-207.98052348,0.00016901,2]
[399733367,1766641850951,-172.12623375,0.00016901,2]
[399733368,1766641850961,-297.40574568,0.00016901,2]
[399733369,1766641850971,-150.0,0.00016901,2]
[399733370,1766641850981,-150.0,0.00016912,2]
[399733371,1766641850992,-150.0,0.00016915,2]
[399733372,1766641851002,-150.0,0.00016916,2]
[399733373,1766641851012,-150.0,0.00016916,2]
[399733374,1766641851023,-207.98052348,0.00016918,2]
[399733375,1766641851033,-172.12623375,0.00016918,2]
[399733376,1766641851043,-297.40574568,0.00016918,2]
[399733377,1766641851054,-150.0,0.00016921,2]
[399733378,1766641851064,-150.0,0.00016931,2]
[399733379,1766641851074,-150.0,0.00016934,2]
[399733380,1766641851084,-207.98052348,0.00016935,2]
[399733381,1766641851094,-172.12623375,0.00016935,2]
[399733382,1766641851104,-297.40574568,0.00016935,2]
[399733383,1766641851115,-150.0,0.00016938,2]
[399733384,1766641851126,-150.0,0.00016944,2]
[399733385,1766641851136,-150.0,0.00016949,2]
[399733386,1766641851146,-150.0,0.00016951,2]
[399733387,1766641851155,-207.98052348,0.00016952,2]
[399733388,1766641851165,-172.12623375,0.00016952,2]
[399733389,1766641851175,-297.40574568,0.00016952,2]
[399733390,1766641851185,-150.0,0.00016962,2]
[399733391,1766641851196,-150.0,0.00016968,2]
[399733392,1766641851206,-150.0,0.00016969,2]
[399733393,1766641851216,-207.98052348,0.00016969,2]
[399733394,1766641851225,-172.12623375,0.00016969,2]
[399733395,1766641851235,-297.40574568,0.00016969,2]
[399733396,1766641851245,-166.66,0.0001697,2]
[399733397,1766641851255,-164.91223401,0.00016973,2]
[399733398,1766641851265,-223.10484954,0.00016973,2]
[399733399,1766641851275,-500.0,0.00016973,2]
[399733400,1766641851285,-500.0,0.00016973,2]
[399733401,1766641851295,-500.59611771,0.00016973,2]
[399733402,1766641851305,-500.0,0.00016973,2]
[399733403,1766641851315,-500.0,0.00016973,2]
[399733404,1766641851326,-163.82860777,0.00016973,2]
[399733405,1766641851336,-500.0,0.00016973,2]
[399733406,1766641851346,-500.0,0.00016973,2]
[399733407,1766641851356,-500.0,0.00016973,2]
[399733408,1766641851366,-500.0,0.00016973,2]
[399733409,1766641851376,-500.0,0.00016973,2]
[399733410,1766641851387,-500.0,0.00016973,2]
[399733411,1766641851400,-157.08021771,0.00016973,2]
[399733412,1766641851410,-172.71520576,0.00016973,2]
[399733413,1766641851421,-500.0,0.00016973,2]
[399733414,1766641851432,-500.0,0.00016973,2]
[399733415,1766641851443,-500.0,0.00016973,2]
[399733416,1766641851453,-500.0,0.00016973,2]
[399733417,1766641851463,-162.97042988,0.00016973,2]
[399733418,1766641851475,-548.10712496,0.00016973,2]
[399733419,1766641851484,-538.67026127,0.00016973,2]
[399733420,1766641851493,-162.14010423,0.00016973,2]
[399733421,1766641851504,-174.86770557,0.00016973,2]
[399733422,1766641851514,-609.0239433,0.00016973,2]
[399733423,1766641851523,-500.0,0.00016973,2]
[399733424,1766641851533,-500.0,0.00016973,2]
[399733425,1766641851543,-500.25597826,0.00016973,2]
[399733426,1766641851552,-500.0,0.00016973,2]
[399733427,1766641851562,-501.82675506,0.00016973,2]
[399733428,1766641851572,-500.0,0.00016973,2]
[399733429,1766641851581,-500.0,0.00016973,2]
[399733430,1766641851591,-500.34321322,0.00016973,2]
[399733431,1766641851601,-318.77837914,0.00016973,2]
[399733432,1766641851610,-500.0,0.00016973,2]
[399733433,1766641851621,-150.0,0.00016973,2]
[399733434,1766641851631,-505.30351694,0.00016983,2]
[399733435,1766641851642,-500.0,0.00016986,2]
[399733436,1766641851652,-500.0,0.00016986,2]
[399733437,1766641851662,-500.0,0.00016986,2]
[399733438,1766641851673,-500.0,0.00016986,2]
[399733439,1766641851683,-600.0,0.00016986,2]
[399733440,1766641851693,-207.98052348,0.00016986,2]
[399733441,1766641851703,-183.38649304,0.00016986,2]
[399733442,1766641851714,-178.95978475,0.00016986,2]
[399733443,1766641851724,-172.12623375,0.00016986,2]
[399733444,1766641851734,-216.83783771,0.00016986,2]
[399733445,1766641851744,-178.89946207,0.00016986,2]
[399733446,1766641851755,-189.4339465,0.00016986,2]
[399733447,1766641851765,-297.40574568,0.00016986,2]
[399733448,1766641851775,-165.80661735,0.00016986,2]
[399733449,1766641851785,-296.26130804,0.00016986,2]
[399733450,1766641851795,-247.20495061,0.00016986,2]
[399733451,1766641851805,-193.50552158,0.00016986,2]
[399733452,1766641851816,-167.35024843,0.00016986,2]
[399733453,1766641851826,-238.98995802,0.00016986,2]
[399733454,1766641851836,-268.64849999,0.00016986,2]
[399733455,1766641851846,-231.40654288,0.0001699,2]
[399733456,1766641851856,-151.0,0.00016997,2]
[399733457,1766641851866,-526.86561972,0.00016998,2]
[399733458,1766641851875,-500.0,0.00016998,2]
[399733459,1766641851886,-521.79,0.00016998,2]
[399733460,1766641851896,-500.0,0.00016998,2]
[399733461,1766641851907,-564.85,0.00016998,2]
[399733462,1766641851917,-500.0,0.00016998,2]
[399733463,1766641851927,-500.0,0.00016998,2]
[399733464,1766641851936,-1060.87558749,0.00016999,5]
[399733465,1766641851946,-1060.87558748,0.00016999,5]
[399733466,1766641851956,-500.0,0.00016999,2]
[399733467,1766641851966,-500.0,0.00016999,2]
[399733468,1766641851976,-500.0,0.00016999,2]
[399733469,1766641851985,-500.0,0.00016999,2]
[399733470,1766641851994,-500.0,0.00016999,2]
[399733471,1766641852004,-526.94684762,0.00016999,2]
[399733472,1766641852015,-674.3,0.00016999,2]
[399733473,1766641852024,-674.3,0.00016999,2]
[399733474,1766641852034,-674.3,0.00016999,2]
[399733475,1766641852044,-674.3,0.00016999,2]
[399733476,1766641852054,-674.3,0.00016999,2]
[399733477,1766641852064,-674.3,0.00016999,2]
[399733478,1766641852074,-674.3,0.00016999,2]
[399733479,1766641852085,-674.3,0.00016999,2]
[399733480,1766641852095,-674.3,0.00016999,2]
[399733481,1766641852106,-674.3,0.00016999,2]
[399733482,1766641852115,-674.3,0.00016999,2]
[399733483,1766641852125,-674.3,0.00016999,2]
[399733484,1766641852135,-674.3,0.00016999,2]
[399733485,1766641852145,-674.3,0.00016999,2]
[399733486,1766641852155,-674.3,0.00016999,2]
[399733487,1766641852165,-674.3,0.00016999,2]
[399733488,1766641852175,-674.3,0.00016999,2]
[399733489,1766641852185,-674.3,0.00016999,2]
[399733490,1766641852195,-674.3,0.00016999,2]
[399733491,1766641852204,-674.53367143,0.00016999,2]
[399733492,1766641852214,-500.0,0.00016999,2]
[399733493,1766641852224,-500.0,0.00016999,2]
[399733494,1766641852235,-500.0,0.00016999,2]
[399733495,1766641852246,-510.32017252,0.00016999,2]
[399733496,1766641852256,-500.0,0.00016999,2]
[399733497,1766641852267,-500.0,0.00016999,2]
[399733498,1766641852277,-500.0,0.00016999,2]
[399733499,1766641852287,-500.0,0.00016999,2]
[399733500,1766641852297,-500.0,0.00016999,2]
[399733501,1766641852307,-500.0,0.00016999,2]
[399733502,1766641852317,-587.42809654,0.00016999,2]
[399733503,1766641852328,-500.0,0.00016999,2]
[399733504,1766641852339,-500.0,0.00016999,2]
[399733505,1766641852349,-579.92879926,0.00016999,2]